[Event "*** Titled Tuesday Blitz"]
[Site "Chess.com"]
[Date "2020.04.14"]
[Round "5"]
[White "aakankshachess"]
[Black "wannabe2700"]
[Result "1-0"]
[WhiteElo "2454"]
[BlackElo "2648"]
[TimeControl "180+1"]
[EndTime "10:50:22 PDT"]
[Termination "aakankshachess won on time"]

1. e4 {[%clk 0:03:00.9]} 1... e6 {[%clk 0:02:55.8]} 2. d4 {[%clk 0:03:00.4]}
2... d5 {[%clk 0:02:56.3]} 3. e5 {[%clk 0:03:00.4]} 3... c5 {[%clk 0:02:56.1]}
4. c3 {[%clk 0:03:00.8]} 4... Ne7 {[%clk 0:02:54.7]} 5. Nf3 {[%clk 0:03:00.8]}
5... Nec6 {[%clk 0:02:52.6]} 6. a3 {[%clk 0:02:58.7]} 6... a5 {[%clk 0:02:50.7]}
7. Bb5 {[%clk 0:02:57.6]} 7... b6 {[%clk 0:02:47.8]} 8. O-O {[%clk 0:02:57.1]}
8... Ba6 {[%clk 0:02:42.8]} 9. a4 {[%clk 0:02:54]} 9... Be7 {[%clk 0:02:38.4]}
10. Na3 {[%clk 0:02:52.6]} 10... O-O {[%clk 0:02:36.5]} 11. Bd3 {[%clk
0:02:45.1]} 11... Bxd3 {[%clk 0:02:28.5]} 12. Qxd3 {[%clk 0:02:45]} 12... cxd4
{[%clk 0:02:26.7]} 13. cxd4 {[%clk 0:02:44.5]} 13... Nb4 {[%clk 0:02:24.8]} 14.
Qe2 {[%clk 0:02:44.5]} 14... Qd7 {[%clk 0:02:12]} 15. Nb5 {[%clk 0:02:40]} 15...
N8a6 {[%clk 0:02:09.7]} 16. Ng5 {[%clk 0:02:32.1]} 16... Rfc8 {[%clk 0:02:04]}
17. Qh5 {[%clk 0:02:30.6]} 17... Bxg5 {[%clk 0:02:00.4]} 18. Bxg5 {[%clk
0:02:30.5]} 18... Rc2 {[%clk 0:01:51.2]} 19. Nd6 {[%clk 0:02:27.4]} 19... Nc7
{[%clk 0:01:24.5]} 20. Rac1 {[%clk 0:02:25.1]} 20... Ne8 {[%clk 0:01:20.4]} 21.
Nxe8 {[%clk 0:02:09.3]} 21... Rxe8 {[%clk 0:01:18.6]} 22. Rxc2 {[%clk
0:02:07.4]} 22... Nxc2 {[%clk 0:01:18]} 23. Qd1 {[%clk 0:02:07.5]} 23... Qxa4
{[%clk 0:01:13.4]} 24. Be3 {[%clk 0:02:02.5]} 24... Rc8 {[%clk 0:01:10.8]} 25.
Qd3 {[%clk 0:02:01]} 25... Nb4 {[%clk 0:01:04.7]} 26. Qe2 {[%clk 0:01:56.5]}
26... Qc2 {[%clk 0:01:04.4]} 27. Qb5 {[%clk 0:01:55.2]} 27... Qc6 {[%clk
0:00:53.4]} 28. Qe2 {[%clk 0:01:54.7]} 28... Qc4 {[%clk 0:00:50.8]} 29. Qg4
{[%clk 0:01:53.6]} 29... Qc2 {[%clk 0:00:46.9]} 30. h3 {[%clk 0:01:51.8]} 30...
Qg6 {[%clk 0:00:34.1]} 31. Qe2 {[%clk 0:01:51.7]} 31... h6 {[%clk 0:00:27.9]}
32. Qb5 {[%clk 0:01:50.9]} 32... Rc2 {[%clk 0:00:19.4]} 33. b3 {[%clk
0:01:48.8]} 33... Qd3 {[%clk 0:00:16.9]} 34. Qxb6 {[%clk 0:01:48.2]} 34... Nc6
{[%clk 0:00:11.1]} 35. Re1 {[%clk 0:01:29.2]} 35... Qc3 {[%clk 0:00:09.5]} 36.
Rf1 {[%clk 0:01:28.6]} 36... Qb4 {[%clk 0:00:04.2]} 37. Qc7 {[%clk 0:01:26.9]}
37... Nxd4 {[%clk 0:00:02.5]} 38. Qd8+ {[%clk 0:01:26.3]} 38... Kh7 {[%clk
0:00:03.1]} 39. Qd7 {[%clk 0:01:22.5]} 39... Qxb3 {[%clk 0:00:02.5]} 40. Bxd4
{[%clk 0:01:21.5]} 40... a4 {[%clk 0:00:01.8]} 41. Qxf7 {[%clk 0:01:20.8]} 41...
a3 {[%clk 0:00:02.2]} 42. Qxe6 {[%clk 0:01:18.4]} 42... a2 {[%clk 0:00:02.6]}
43. Qf5+ {[%clk 0:01:17]} 43... Kh8 {[%clk 0:00:02.8]} 44. e6 {[%clk 0:01:16.3]}
1-0

[Event "*** Titled Tuesday Blitz"]
[Site "Chess.com"]
[Date "2020.04.14"]
[Round "5"]
[White "artooon"]
[Black "mbachez"]
[Result "0-1"]
[WhiteElo "2680"]
[BlackElo "2517"]
[TimeControl "180+1"]
[EndTime "10:50:23 PDT"]
[Termination "mbachez won by checkmate"]

1. e4 {[%clk 0:03:00.9]} 1... e6 {[%clk 0:02:59.6]} 2. d4 {[%clk 0:02:59.1]}
2... d5 {[%clk 0:02:59.4]} 3. Nd2 {[%clk 0:02:59]} 3... h6 {[%clk 0:02:59.1]} 4.
Ngf3 {[%clk 0:02:58.6]} 4... Nf6 {[%clk 0:02:59.1]} 5. e5 {[%clk 0:02:59.1]}
5... Nfd7 {[%clk 0:02:59.3]} 6. c3 {[%clk 0:02:59.6]} 6... c5 {[%clk 0:02:59.5]}
7. Bd3 {[%clk 0:03:00.2]} 7... Nc6 {[%clk 0:02:59.6]} 8. O-O {[%clk 0:02:59]}
8... g5 {[%clk 0:02:59.6]} 9. dxc5 {[%clk 0:02:59.5]} 9... Nxc5 {[%clk
0:02:59.7]} 10. Bc2 {[%clk 0:02:59.4]} 10... Nd7 {[%clk 0:02:59.3]} 11. c4
{[%clk 0:02:52.5]} 11... Ndxe5 {[%clk 0:02:34]} 12. Nxe5 {[%clk 0:02:51.5]}
12... Nxe5 {[%clk 0:02:33.4]} 13. Ba4+ {[%clk 0:02:49.5]} 13... Bd7 {[%clk
0:02:32.5]} 14. cxd5 {[%clk 0:02:49.1]} 14... Bxa4 {[%clk 0:02:13.4]} 15. Qxa4+
{[%clk 0:02:50]} 15... Qd7 {[%clk 0:02:13.3]} 16. Qxd7+ {[%clk 0:02:19.2]} 16...
Kxd7 {[%clk 0:02:12.9]} 17. dxe6+ {[%clk 0:02:19.4]} 17... fxe6 {[%clk
0:02:11.8]} 18. Ne4 {[%clk 0:02:19.5]} 18... b6 {[%clk 0:02:04.6]} 19. Bd2
{[%clk 0:02:18.6]} 19... Bg7 {[%clk 0:02:04.1]} 20. Bc3 {[%clk 0:02:18.4]} 20...
Rad8 {[%clk 0:01:48.8]} 21. Rac1 {[%clk 0:02:08.3]} 21... Rhg8 {[%clk
0:01:31.4]} 22. Rfd1+ {[%clk 0:02:02.1]} 22... Ke7 {[%clk 0:01:30.8]} 23. Bb4+
{[%clk 0:02:01.6]} 23... Kf7 {[%clk 0:01:25.2]} 24. Rc7+ {[%clk 0:01:48.1]}
24... Kg6 {[%clk 0:01:25]} 25. Rxd8 {[%clk 0:01:47.4]} 25... Rxd8 {[%clk
0:01:23.9]} 26. g3 {[%clk 0:01:42.1]} 26... g4 {[%clk 0:01:20.1]} 27. Kg2 {[%clk
0:01:21.5]} 27... Rd4 {[%clk 0:01:14.9]} 28. Bc3 {[%clk 0:00:51.3]} 28... Rxe4
{[%clk 0:01:14.1]} 29. Rxa7 {[%clk 0:00:51.4]} 29... Bf6 {[%clk 0:01:12.3]} 30.
Rb7 {[%clk 0:00:50]} 30... Nf3 {[%clk 0:01:08.9]} 31. h3 {[%clk 0:00:47.9]}
31... h5 {[%clk 0:01:08.4]} 32. hxg4 {[%clk 0:00:47.3]} 32... hxg4 {[%clk
0:01:08.5]} 33. Bxf6 {[%clk 0:00:39]} 33... Kxf6 {[%clk 0:01:04.5]} 34. Rh7
{[%clk 0:00:32.2]} 34... Re1 {[%clk 0:01:01.4]} 35. Rh6+ {[%clk 0:00:31.9]}
35... Ke5 {[%clk 0:00:56.7]} 36. Rh1 {[%clk 0:00:32.8]} 36... Rxh1 {[%clk
0:00:56.1]} 37. Kxh1 {[%clk 0:00:33.7]} 37... Kd4 {[%clk 0:00:54]} 38. b4 {[%clk
0:00:34.6]} 38... Kc4 {[%clk 0:00:53.9]} 39. a4 {[%clk 0:00:35.1]} 39... Kxb4
{[%clk 0:00:53.9]} 40. a5 {[%clk 0:00:35.6]} 40... bxa5 {[%clk 0:00:53.5]} 41.
Kg2 {[%clk 0:00:35.7]} 41... a4 {[%clk 0:00:53.6]} 42. Kf1 {[%clk 0:00:36.6]}
42... a3 {[%clk 0:00:53.8]} 43. Ke2 {[%clk 0:00:37.5]} 43... a2 {[%clk 0:00:54]}
44. Ke3 {[%clk 0:00:38.4]} 44... a1=Q {[%clk 0:00:53.4]} 45. Kf4 {[%clk
0:00:39.3]} 45... Qd4# {[%clk 0:00:51.6]} 0-1

[Event "*** Titled Tuesday Blitz"]
[Site "Chess.com"]
[Date "2020.04.14"]
[Round "5"]
[White "kircsaj"]
[Black "manitodeplomo"]
[Result "0-1"]
[WhiteElo "2310"]
[BlackElo "2491"]
[TimeControl "180+1"]
[EndTime "10:50:23 PDT"]
[Termination "manitodeplomo won by checkmate"]

1. e4 {[%clk 0:03:00.8]} 1... c5 {[%clk 0:02:59.6]} 2. Nf3 {[%clk 0:03:00.5]}
2... e6 {[%clk 0:03:00.1]} 3. d4 {[%clk 0:03:00.2]} 3... cxd4 {[%clk 0:03:01]}
4. Nxd4 {[%clk 0:03:00.7]} 4... a6 {[%clk 0:03:00.4]} 5. Nc3 {[%clk 0:03:01]}
5... b5 {[%clk 0:02:59.4]} 6. Bd3 {[%clk 0:03:00.3]} 6... Bb7 {[%clk 0:02:58.6]}
7. O-O {[%clk 0:02:58.6]} 7... b4 {[%clk 0:02:56.8]} 8. Nce2 {[%clk 0:02:45.1]}
8... Nf6 {[%clk 0:02:49.5]} 9. e5 {[%clk 0:02:45]} 9... Ng4 {[%clk 0:02:48]} 10.
Bf4 {[%clk 0:02:42.8]} 10... g5 {[%clk 0:02:39.7]} 11. Bg3 {[%clk 0:02:40.8]}
11... h5 {[%clk 0:02:39.3]} 12. h3 {[%clk 0:02:36.7]} 12... h4 {[%clk
0:02:39.2]} 13. hxg4 {[%clk 0:02:35.5]} 13... hxg3 {[%clk 0:02:39]} 14. Nxg3
{[%clk 0:02:36]} 14... Bg7 {[%clk 0:01:48]} 15. Nf3 {[%clk 0:02:35.5]} 15...
Bxf3 {[%clk 0:01:38.7]} 16. Qxf3 {[%clk 0:02:35.2]} 16... Nc6 {[%clk 0:01:39.6]}
17. Nh5 {[%clk 0:02:33]} 17... Bxe5 {[%clk 0:01:30.4]} 18. Rae1 {[%clk
0:02:27.4]} 18... d5 {[%clk 0:00:54.5]} 19. Rxe5 {[%clk 0:02:04.6]} 19... Nxe5
{[%clk 0:00:52.3]} 20. Qe2 {[%clk 0:02:03.3]} 20... Nxd3 {[%clk 0:00:48.7]} 21.
cxd3 {[%clk 0:02:01.9]} 21... Qc7 {[%clk 0:00:40.2]} 22. Nf6+ {[%clk 0:01:58.1]}
22... Kf8 {[%clk 0:00:38.6]} 23. g3 {[%clk 0:01:55.2]} 23... Kg7 {[%clk
0:00:31.4]} 24. Nh5+ {[%clk 0:01:54.9]} 24... Kg6 {[%clk 0:00:31.3]} 25. d4
{[%clk 0:01:52.8]} 25... Rhe8 {[%clk 0:00:25.7]} 26. Qd3+ {[%clk 0:01:48.8]}
26... f5 {[%clk 0:00:25.5]} 27. Re1 {[%clk 0:01:45.2]} 27... Qd7 {[%clk
0:00:17.6]} 28. Re5 {[%clk 0:01:42.2]} 28... Rac8 {[%clk 0:00:17.4]} 29. Qe2
{[%clk 0:01:38.5]} 29... a5 {[%clk 0:00:13.8]} 30. Kg2 {[%clk 0:01:29.8]} 30...
a4 {[%clk 0:00:13.7]} 31. f4 {[%clk 0:01:26.2]} 31... b3 {[%clk 0:00:10.5]} 32.
axb3 {[%clk 0:01:25.9]} 32... axb3 {[%clk 0:00:11.1]} 33. gxf5+ {[%clk
0:01:03.7]} 33... exf5 {[%clk 0:00:12]} 34. Qa6+ {[%clk 0:01:03.6]} 34... Rc6
{[%clk 0:00:10.3]} 35. Qd3 {[%clk 0:00:54.7]} 35... Rc2+ {[%clk 0:00:09.8]} 36.
Kh3 {[%clk 0:00:54.5]} 36... g4+ {[%clk 0:00:09.7]} 37. Kh4 {[%clk 0:00:54.5]}
37... Qd8+ {[%clk 0:00:09.9]} 38. Nf6 {[%clk 0:00:52.8]} 38... Qxf6# {[%clk
0:00:10]} 0-1

[Event "*** Titled Tuesday Blitz"]
[Site "Chess.com"]
[Date "2020.04.14"]
[Round "5"]
[White "Spriteball"]
[Black "ReyesBraulio"]
[Result "1-0"]
[WhiteElo "1915"]
[BlackElo "2160"]
[TimeControl "180+1"]
[EndTime "10:50:23 PDT"]
[Termination "Spriteball won by checkmate"]

1. d4 {[%clk 0:03:00.9]} 1... d5 {[%clk 0:02:59.5]} 2. c4 {[%clk 0:03:00.2]}
2... e6 {[%clk 0:02:59.5]} 3. Nc3 {[%clk 0:02:59.8]} 3... f5 {[%clk 0:02:59]} 4.
Nf3 {[%clk 0:02:58.9]} 4... c6 {[%clk 0:02:59.2]} 5. Bf4 {[%clk 0:02:58]} 5...
Nf6 {[%clk 0:02:59.3]} 6. e3 {[%clk 0:02:57.9]} 6... Bd6 {[%clk 0:02:58.4]} 7.
Bd3 {[%clk 0:02:49.1]} 7... O-O {[%clk 0:02:57.8]} 8. O-O {[%clk 0:02:48.5]}
8... Ne4 {[%clk 0:02:57]} 9. Ne2 {[%clk 0:02:34]} 9... Qe7 {[%clk 0:02:56.3]}
10. cxd5 {[%clk 0:02:26.6]} 10... exd5 {[%clk 0:02:55.1]} 11. Rc1 {[%clk
0:02:21]} 11... Bd7 {[%clk 0:02:50.5]} 12. h3 {[%clk 0:02:17.4]} 12... Be8
{[%clk 0:02:50.2]} 13. Bxd6 {[%clk 0:02:03]} 13... Qxd6 {[%clk 0:02:49.7]} 14.
Ne5 {[%clk 0:01:53.6]} 14... Nd7 {[%clk 0:02:48.9]} 15. Nxd7 {[%clk 0:01:48.4]}
15... Qxd7 {[%clk 0:02:43.9]} 16. Nc3 {[%clk 0:01:34.1]} 16... Qe7 {[%clk
0:02:43.4]} 17. a3 {[%clk 0:01:28.9]} 17... g5 {[%clk 0:02:40.7]} 18. b4 {[%clk
0:01:24.7]} 18... a6 {[%clk 0:02:39.1]} 19. Nxe4 {[%clk 0:01:18.6]} 19... fxe4
{[%clk 0:02:36.7]} 20. Be2 {[%clk 0:01:16.6]} 20... Bg6 {[%clk 0:02:29.4]} 21.
Bh5 {[%clk 0:01:13.4]} 21... Qf7 {[%clk 0:02:25.9]} 22. Bxg6 {[%clk 0:01:11.3]}
22... Qxg6 {[%clk 0:02:25.6]} 23. a4 {[%clk 0:01:06.7]} 23... h5 {[%clk
0:02:24.3]} 24. b5 {[%clk 0:01:03.7]} 24... axb5 {[%clk 0:02:23.6]} 25. axb5
{[%clk 0:01:03.7]} 25... g4 {[%clk 0:02:23.4]} 26. h4 {[%clk 0:00:48.9]} 26...
Ra2 {[%clk 0:01:59.5]} 27. Qb3 {[%clk 0:00:38.4]} 27... Re2 {[%clk 0:01:45.5]}
28. Qd1 {[%clk 0:00:36.6]} 28... Rb2 {[%clk 0:01:42.3]} 29. bxc6 {[%clk
0:00:33.5]} 29... bxc6 {[%clk 0:01:41.2]} 30. Rc2 {[%clk 0:00:33.2]} 30... Rb7
{[%clk 0:01:34.7]} 31. g3 {[%clk 0:00:31.3]} 31... Rbf7 {[%clk 0:01:33.5]} 32.
Qc1 {[%clk 0:00:29.8]} 32... Rf6 {[%clk 0:01:32.3]} 33. Qa3 {[%clk 0:00:25.5]}
33... Qf7 {[%clk 0:01:28.7]} 34. Qa2 {[%clk 0:00:23.7]} 34... Rf3 {[%clk
0:01:26.6]} 35. Kg2 {[%clk 0:00:21.9]} 35... Rxg3+ {[%clk 0:01:23.5]} 36. Kxg3
{[%clk 0:00:21.2]} 36... Qf3+ {[%clk 0:01:23.9]} 37. Kh2 {[%clk 0:00:20.7]}
37... g3+ {[%clk 0:01:24.2]} 38. fxg3 {[%clk 0:00:19.9]} 38... Qxf1 {[%clk
0:01:24.3]} 39. Rg2 {[%clk 0:00:19.6]} 39... Qc1 {[%clk 0:01:18.6]} 40. Qe2
{[%clk 0:00:17.8]} 40... Rf1 {[%clk 0:01:16.7]} 41. g4 {[%clk 0:00:17.3]} 41...
Rh1+ {[%clk 0:01:09.4]} 42. Kg3 {[%clk 0:00:17]} 42... hxg4 {[%clk 0:01:08.2]}
43. Qxg4+ {[%clk 0:00:16.6]} 43... Kh8 {[%clk 0:01:07.2]} 44. Qh5+ {[%clk
0:00:16.5]} 44... Kg8 {[%clk 0:01:04.9]} 45. Kf4+ {[%clk 0:00:14.8]} 45... Kf8
{[%clk 0:01:03.2]} 46. Qh6+ {[%clk 0:00:13.8]} 46... Ke8 {[%clk 0:01:02.8]} 47.
Rg8+ {[%clk 0:00:13.8]} 47... Kf7 {[%clk 0:01:02.7]} 48. Rg7+ {[%clk 0:00:13.9]}
48... Kf8 {[%clk 0:01:02.9]} 49. Qh8# {[%clk 0:00:14.3]} 1-0

[Event "*** Titled Tuesday Blitz"]
[Site "Chess.com"]
[Date "2020.04.14"]
[Round "5"]
[White "sebsep"]
[Black "starworld123"]
[Result "1-0"]
[WhiteElo "2385"]
[BlackElo "2583"]
[TimeControl "180+1"]
[EndTime "10:50:24 PDT"]
[Termination "sebsep won by resignation"]

1. e4 {[%clk 0:03:00.9]} 1... c6 {[%clk 0:02:57.9]} 2. c4 {[%clk 0:03:00.4]}
2... d5 {[%clk 0:02:57.6]} 3. cxd5 {[%clk 0:03:00.9]} 3... cxd5 {[%clk
0:02:58.5]} 4. exd5 {[%clk 0:03:01.5]} 4... Nf6 {[%clk 0:02:59.2]} 5. Nc3 {[%clk
0:03:02]} 5... Nxd5 {[%clk 0:02:56.5]} 6. Nf3 {[%clk 0:03:01.8]} 6... Nc6 {[%clk
0:02:54.1]} 7. Bb5 {[%clk 0:03:01.5]} 7... e6 {[%clk 0:02:49.7]} 8. O-O {[%clk
0:03:00.4]} 8... Be7 {[%clk 0:02:48.3]} 9. d4 {[%clk 0:02:59.9]} 9... O-O {[%clk
0:02:47.5]} 10. Re1 {[%clk 0:02:59.6]} 10... Bf6 {[%clk 0:02:38]} 11. Ne4 {[%clk
0:02:58.7]} 11... Bd7 {[%clk 0:02:34.7]} 12. Nxf6+ {[%clk 0:02:52.9]} 12... Nxf6
{[%clk 0:02:30.3]} 13. Bg5 {[%clk 0:02:51.1]} 13... Ne7 {[%clk 0:02:19.6]} 14.
Bd3 {[%clk 0:02:41.5]} 14... Ng6 {[%clk 0:02:02.6]} 15. Ne5 {[%clk 0:02:36]}
15... Rc8 {[%clk 0:01:49.5]} 16. h4 {[%clk 0:02:29.1]} 16... h6 {[%clk
0:01:35.9]} 17. Bxf6 {[%clk 0:02:28.7]} 17... gxf6 {[%clk 0:01:34]} 18. Nxg6
{[%clk 0:02:07.4]} 18... fxg6 {[%clk 0:01:34.2]} 19. Qg4 {[%clk 0:02:07.3]}
19... Rf7 {[%clk 0:01:27.1]} 20. Bxg6 {[%clk 0:01:54.5]} 20... Rg7 {[%clk
0:01:24.5]} 21. h5 {[%clk 0:01:54.8]} 21... e5 {[%clk 0:01:00.2]} 22. Qh4 {[%clk
0:01:43.7]} 22... exd4 {[%clk 0:00:26.6]} 23. Qxd4 {[%clk 0:01:44.6]} 23... Bc6
{[%clk 0:00:25.2]} 24. Qg4 {[%clk 0:01:29.7]} 24... Rcc7 {[%clk 0:00:20.9]} 25.
Rad1 {[%clk 0:01:26.3]} 25... Rcd7 {[%clk 0:00:19.9]} 26. Rxd7 {[%clk
0:01:25.2]} 26... Qxd7 {[%clk 0:00:20.5]} 27. Qc4+ {[%clk 0:01:11.3]} 27... Kh8
{[%clk 0:00:11.1]} 28. Qf4 {[%clk 0:00:53.2]} 28... Qd8 {[%clk 0:00:07.8]} 29.
Qxh6+ {[%clk 0:00:50.2]} 29... Kg8 {[%clk 0:00:08.7]} 30. Qf4 {[%clk 0:00:48.1]}
30... Qd5 {[%clk 0:00:08.4]} 31. Qb8+ {[%clk 0:00:41.8]} 1-0

[Event "*** Titled Tuesday Blitz"]
[Site "Chess.com"]
[Date "2020.04.14"]
[Round "5"]
[White "LastHeroJr"]
[Black "NormWeinstein"]
[Result "1-0"]
[WhiteElo "2538"]
[BlackElo "2357"]
[TimeControl "180+1"]
[EndTime "10:50:25 PDT"]
[Termination "LastHeroJr won on time"]

1. e4 {[%clk 0:03:00.9]} 1... c6 {[%clk 0:02:58.3]} 2. d4 {[%clk 0:03:00.1]}
2... d6 {[%clk 0:02:58.7]} 3. Nc3 {[%clk 0:02:54.9]} 3... Nf6 {[%clk 0:02:59.1]}
4. f4 {[%clk 0:02:51.5]} 4... Qa5 {[%clk 0:02:58.1]} 5. Bd3 {[%clk 0:02:50.4]}
5... e5 {[%clk 0:02:57.5]} 6. Nf3 {[%clk 0:02:50.6]} 6... Bg4 {[%clk 0:02:57.2]}
7. Be3 {[%clk 0:02:47.5]} 7... Nbd7 {[%clk 0:02:56.8]} 8. O-O {[%clk 0:02:46.3]}
8... Be7 {[%clk 0:02:56.6]} 9. h3 {[%clk 0:02:41.4]} 9... Bxf3 {[%clk
0:02:55.6]} 10. Qxf3 {[%clk 0:02:42.3]} 10... O-O {[%clk 0:02:55.5]} 11. Ne2
{[%clk 0:02:23.9]} 11... Rae8 {[%clk 0:02:35.5]} 12. c3 {[%clk 0:02:15.4]} 12...
Bd8 {[%clk 0:02:17.4]} 13. g4 {[%clk 0:02:00]} 13... g6 {[%clk 0:01:46.6]} 14.
fxe5 {[%clk 0:01:49.2]} 14... dxe5 {[%clk 0:01:45]} 15. Bh6 {[%clk 0:01:49.2]}
15... Bc7 {[%clk 0:01:08.2]} 16. Bc4 {[%clk 0:01:44.9]} 16... exd4 {[%clk
0:01:00.3]} 17. cxd4 {[%clk 0:01:31.8]} 17... Re7 {[%clk 0:00:33.2]} 18. Bxf8
{[%clk 0:00:50.2]} 18... Kxf8 {[%clk 0:00:31.5]} 19. e5 {[%clk 0:00:39.2]} 19...
Nd5 {[%clk 0:00:31.5]} 20. Nf4 {[%clk 0:00:36.3]} 20... N7b6 {[%clk 0:00:26.6]}
21. Bb3 {[%clk 0:00:34.7]} 21... Nxf4 {[%clk 0:00:21.3]} 22. Qxf4 {[%clk
0:00:35.6]} 22... Nd5 {[%clk 0:00:17.8]} 23. Qf3 {[%clk 0:00:34]} 23... Bb6
{[%clk 0:00:16.2]} 24. Rad1 {[%clk 0:00:31.9]} 24... Kg8 {[%clk 0:00:14.9]} 25.
Kh1 {[%clk 0:00:31.5]} 25... Qb4 {[%clk 0:00:13.4]} 26. e6 {[%clk 0:00:29.2]}
26... f6 {[%clk 0:00:11.2]} 27. Bxd5 {[%clk 0:00:28.9]} 27... cxd5 {[%clk
0:00:11.2]} 28. Qxf6 {[%clk 0:00:29.5]} 1-0

[Event "*** Titled Tuesday Blitz"]
[Site "Chess.com"]
[Date "2020.04.14"]
[Round "5"]
[White "garicradomir"]
[Black "Semen_Khanin"]
[Result "1-0"]
[WhiteElo "2414"]
[BlackElo "2601"]
[TimeControl "180+1"]
[EndTime "10:50:26 PDT"]
[Termination "garicradomir won by resignation"]

1. e4 {[%clk 0:03:00.9]} 1... e5 {[%clk 0:02:59.1]} 2. Nf3 {[%clk 0:03:00.5]}
2... Nc6 {[%clk 0:02:59.4]} 3. Nc3 {[%clk 0:03:01]} 3... Nf6 {[%clk 0:02:59.2]}
4. Bb5 {[%clk 0:03:01.5]} 4... Nd4 {[%clk 0:02:57.9]} 5. O-O {[%clk 0:03:00.7]}
5... Nxb5 {[%clk 0:02:53.7]} 6. Nxb5 {[%clk 0:03:01.6]} 6... d6 {[%clk
0:02:53.6]} 7. d4 {[%clk 0:03:01.2]} 7... exd4 {[%clk 0:02:51.7]} 8. Qxd4 {[%clk
0:03:02.1]} 8... a6 {[%clk 0:02:49.7]} 9. Nc3 {[%clk 0:03:01]} 9... Be7 {[%clk
0:02:50]} 10. b3 {[%clk 0:03:00.8]} 10... Bg4 {[%clk 0:02:46.1]} 11. Bb2 {[%clk
0:02:58.3]} 11... Bxf3 {[%clk 0:02:45.6]} 12. gxf3 {[%clk 0:02:58.1]} 12... Qd7
{[%clk 0:02:46]} 13. Kh1 {[%clk 0:02:54.6]} 13... Qh3 {[%clk 0:02:44.1]} 14. Qe3
{[%clk 0:02:33.6]} 14... h6 {[%clk 0:02:24.4]} 15. Rg1 {[%clk 0:02:30.2]} 15...
Rg8 {[%clk 0:02:12.8]} 16. Rg3 {[%clk 0:02:29.5]} 16... Qe6 {[%clk 0:02:08.8]}
17. Rd1 {[%clk 0:02:20.5]} 17... O-O-O {[%clk 0:02:07.8]} 18. Qa7 {[%clk
0:02:17.2]} 18... Nh5 {[%clk 0:02:00.6]} 19. Qa8+ {[%clk 0:01:55.3]} 19... Kd7
{[%clk 0:02:00]} 20. Qxb7 {[%clk 0:01:56.2]} 20... Nxg3+ {[%clk 0:01:59.8]} 21.
hxg3 {[%clk 0:01:56.4]} 21... Qf6 {[%clk 0:01:44.9]} 22. Kg2 {[%clk 0:01:31.3]}
22... Rb8 {[%clk 0:01:40.5]} 23. Qxa6 {[%clk 0:01:27.8]} 23... Rgc8 {[%clk
0:01:31.9]} 24. Na4 {[%clk 0:01:05.7]} 24... Qg5 {[%clk 0:01:28.5]} 25. Rd5
{[%clk 0:01:02.6]} 25... Qg6 {[%clk 0:01:24]} 26. Nc5+ {[%clk 0:00:55.9]} 26...
Ke8 {[%clk 0:01:23.7]} 27. Qc6+ {[%clk 0:00:54.4]} 27... Kf8 {[%clk 0:01:21.2]}
28. Nd7+ {[%clk 0:00:54.3]} 28... Kg8 {[%clk 0:01:21.2]} 29. Nxb8 {[%clk
0:00:54.1]} 29... Rxb8 {[%clk 0:01:21.4]} 30. Qxc7 {[%clk 0:00:54]} 30... Re8
{[%clk 0:01:21]} 31. Qd7 {[%clk 0:00:52.3]} 31... f6 {[%clk 0:01:21]} 32. Qe6+
{[%clk 0:00:40.8]} 32... Kh7 {[%clk 0:01:19.5]} 33. Qf5 {[%clk 0:00:39.9]} 33...
Qxf5 {[%clk 0:01:15.5]} 34. exf5 {[%clk 0:00:37.7]} 34... Bf8 {[%clk 0:01:13.1]}
35. Bc3 {[%clk 0:00:35.3]} 35... Rc8 {[%clk 0:01:10.6]} 36. Rd3 {[%clk
0:00:34.8]} 36... h5 {[%clk 0:01:10.1]} 37. a4 {[%clk 0:00:34]} 37... Rc5 {[%clk
0:01:05.8]} 38. g4 {[%clk 0:00:30.9]} 38... Be7 {[%clk 0:01:03.7]} 39. a5 {[%clk
0:00:29.7]} 39... Bd8 {[%clk 0:01:01.6]} 40. b4 {[%clk 0:00:29.9]} 40... Rc8
{[%clk 0:00:57.5]} 41. b5 {[%clk 0:00:29.1]} 41... Rc5 {[%clk 0:00:49.8]} 42.
Rxd6 {[%clk 0:00:26.8]} 42... Bc7 {[%clk 0:00:48.5]} 43. Rc6 {[%clk 0:00:25.5]}
1-0

[Event "*** Titled Tuesday Blitz"]
[Site "Chess.com"]
[Date "2020.04.14"]
[Round "5"]
[White "Trankuilizer"]
[Black "BasilSmash"]
[Result "0-1"]
[WhiteElo "2617"]
[BlackElo "2391"]
[TimeControl "180+1"]
[EndTime "10:50:27 PDT"]
[Termination "BasilSmash won by resignation"]

1. e4 {[%clk 0:03:00.9]} 1... c6 {[%clk 0:02:59.6]} 2. d4 {[%clk 0:03:00.4]}
2... d5 {[%clk 0:03:00.5]} 3. e5 {[%clk 0:03:00.8]} 3... Bf5 {[%clk 0:02:58.2]}
4. h4 {[%clk 0:03:01]} 4... h5 {[%clk 0:02:57.4]} 5. Bd3 {[%clk 0:03:00.7]} 5...
Bxd3 {[%clk 0:02:56.6]} 6. Qxd3 {[%clk 0:03:01]} 6... Qa5+ {[%clk 0:02:57.2]} 7.
Nc3 {[%clk 0:03:00.8]} 7... e6 {[%clk 0:02:56.7]} 8. Ne2 {[%clk 0:02:55.2]} 8...
Ne7 {[%clk 0:02:54]} 9. Bg5 {[%clk 0:02:49.4]} 9... Nf5 {[%clk 0:02:53.2]} 10.
Ng3 {[%clk 0:02:49.9]} 10... Nxg3 {[%clk 0:02:49.5]} 11. Qxg3 {[%clk 0:02:49.5]}
11... c5 {[%clk 0:02:47.8]} 12. O-O {[%clk 0:02:33.6]} 12... cxd4 {[%clk
0:02:45.1]} 13. Ne2 {[%clk 0:02:33.8]} 13... Nc6 {[%clk 0:02:44.6]} 14. Rfd1
{[%clk 0:02:30.9]} 14... Qb6 {[%clk 0:02:43.7]} 15. Rab1 {[%clk 0:02:16]} 15...
Rc8 {[%clk 0:02:41.3]} 16. a3 {[%clk 0:02:03.2]} 16... a5 {[%clk 0:02:38.2]} 17.
b3 {[%clk 0:01:50.4]} 17... Bxa3 {[%clk 0:02:29.5]} 18. Nf4 {[%clk 0:01:42.9]}
18... Qc7 {[%clk 0:02:09.8]} 19. Nd3 {[%clk 0:01:33.2]} 19... b6 {[%clk
0:01:45.5]} 20. f4 {[%clk 0:01:21.2]} 20... g6 {[%clk 0:01:34.6]} 21. Bf6 {[%clk
0:01:20.2]} 21... Rg8 {[%clk 0:01:34.6]} 22. f5 {[%clk 0:01:18.6]} 22... Be7
{[%clk 0:01:27.8]} 23. Qg5 {[%clk 0:01:02.3]} 23... Bxf6 {[%clk 0:01:24.2]} 24.
exf6 {[%clk 0:01:00.4]} 24... exf5 {[%clk 0:01:13.7]} 25. Re1+ {[%clk
0:00:58.1]} 25... Kd7 {[%clk 0:01:13.8]} 26. b4 {[%clk 0:00:37.4]} 26... Rge8
{[%clk 0:01:02.7]} 27. b5 {[%clk 0:00:36.8]} 27... Nb4 {[%clk 0:00:57.7]} 28.
Nxb4 {[%clk 0:00:31.8]} 28... axb4 {[%clk 0:00:58.6]} 29. Re7+ {[%clk
0:00:28.1]} 29... Rxe7 {[%clk 0:00:56.6]} 30. fxe7 {[%clk 0:00:28.4]} 30... Qe5
{[%clk 0:00:50.4]} 31. Kh1 {[%clk 0:00:28.3]} 31... Qxe7 {[%clk 0:00:43.8]} 32.
Qf4 {[%clk 0:00:28.5]} 32... Qe3 {[%clk 0:00:39.8]} 33. Qf1 {[%clk 0:00:25.9]}
33... Rxc2 {[%clk 0:00:38.1]} 34. Ra1 {[%clk 0:00:24]} 34... Kd6 {[%clk
0:00:37.7]} 35. Qb1 {[%clk 0:00:21.4]} 35... b3 {[%clk 0:00:34.5]} 36. Qf1
{[%clk 0:00:17.3]} 0-1